bitfinex/quotes_BTCUSD_20240905
["timestamp","ask_amount","ask_price","bid_price","bid_amount"]
[1725561304962,0.44894767,56771.0,56768.0,0.176155]
[1725561305218,0.44894767,56771.0,56751.0,0.1645]
[1725561305219,0.0034,56768.0,56751.0,0.1645]
[1725561305467,0.002,56769.0,56752.0,0.70271015]
[1725561305468,0.27280067,56753.0,56752.0,0.70271015]
[1725561305697,0.27280067,56753.0,56749.0,0.001632]
[1725561305943,0.528633,56750.0,56749.0,0.001632]
[1725561306161,0.176211,56750.0,56749.0,0.001632]
[1725561306385,0.528633,56750.0,56749.0,0.001632]
[1725561306665,0.884455,56750.0,56749.0,0.001632]
[1725561307328,0.892455,56750.0,56749.0,0.002632]
[1725561307544,0.884455,56750.0,56749.0,0.001632]
[1725561307767,1.236877,56750.0,56749.0,0.002632]
[1725561307991,1.244877,56750.0,56749.0,0.002632]
[1725561308206,1.243877,56750.0,56749.0,0.002632]
[1725561308431,1.252877,56750.0,56749.0,0.003632]
[1725561308651,1.245877,56750.0,56749.0,0.002632]
[1725561308876,1.247877,56750.0,56749.0,0.002632]
[1725561309093,1.380877,56750.0,56749.0,0.003632]
[1725561309510,1.370877,56750.0,56749.0,0.002632]
[1725561309745,1.359877,56750.0,56749.0,0.001632]
[1725561310172,1.368877,56750.0,56749.0,0.002632]
[1725561311070,0.647633,56750.0,56749.0,0.003632]
[1725561311296,1.000055,56750.0,56749.0,0.003632]
[1725561311516,1.375477,56750.0,56749.0,0.003632]
[1725561314063,1.39391467,56750.0,56749.0,0.003632]
[1725561316863,1.74633667,56750.0,56749.0,0.003632]
[1725561317086,1.75173667,56750.0,56749.0,0.003632]
[1725561317555,1.76173667,56750.0,56749.0,0.003632]
[1725561318012,1.74973667,56750.0,56749.0,0.003632]
[1725561318933,1.75973667,56750.0,56749.0,0.003632]
[1725561319159,1.39731467,56750.0,56749.0,0.003632]
[1725561320360,1.37091467,56750.0,56749.0,0.003632]
[1725561321784,1.39391467,56750.0,56749.0,0.003632]
[1725561323378,1.01849267,56750.0,56749.0,0.179632]
[1725561325033,1.04149267,56750.0,56749.0,0.179632]
[1725561326643,1.03149267,56750.0,56749.0,0.178632]
[1725561327076,1.03149267,56750.0,56749.0,0.179632]
[1725561327077,1.04049267,56750.0,56749.0,0.179632]
[1725561327485,1.02249267,56750.0,56749.0,0.177632]
[1725561327688,1.44556067,56750.0,56749.0,0.001632]
[1725561327923,1.46056067,56750.0,56749.0,0.003632]
[1725561328105,1.46056067,56750.0,56749.0,0.002632]
[1725561328537,1.46856067,56750.0,56749.0,0.003632]
[1725561329162,1.82298267,56750.0,56749.0,0.003632]
[1725561329370,1.83298267,56750.0,56749.0,0.003632]
[1725561329606,1.83638267,56750.0,56749.0,0.003632]
[1725561330626,1.83438267,56750.0,56749.0,0.003632]
[1725561332222,1.83638267,56750.0,56749.0,0.003632]
[1725561334273,1.83638267,56750.0,56743.0,0.001634]
[1725561334274,1.23561,56744.0,56743.0,0.001634]
[1725561334493,0.012,56743.0,56742.0,0.00163]
[1725561334714,2.209211,56743.0,56742.0,0.00163]
[1725561334937,2.60773938,56743.0,56742.0,0.00163]
[1725561335602,1.233869,56732.0,56731.0,0.162]
[1725561335832,0.528867,56725.0,56724.0,0.162]
[1725561336043,1.50682367,56725.0,56724.0,0.162]
[1725561337162,1.51182367,56725.0,56724.0,0.162]
[1725561337376,1.53482367,56725.0,56724.0,0.162]
[1725561337588,1.17724567,56725.0,56724.0,0.162]
[1725561337808,1.15424567,56725.0,56724.0,0.162]
[1725561338873,1.16024567,56725.0,56724.0,0.162]
[1725561339514,0.80766767,56725.0,56724.0,0.162]
[1725561339741,0.81466767,56725.0,56724.0,0.163]
[1725561340157,0.81466767,56725.0,56724.0,0.162]
[1725561340158,1.16024567,56725.0,56724.0,0.162]
[1725561340370,0.46108967,56725.0,56724.0,0.163]
[1725561340587,0.81366767,56725.0,56724.0,0.163]
[1725561340803,0.46108967,56725.0,56724.0,0.163]
[1725561341011,0.81366767,56725.0,56724.0,0.163]
[1725561341832,0.81366767,56725.0,56724.0,0.164632]
[1725561342698,1.16624567,56725.0,56724.0,0.164632]
[1725561345547,0.81366767,56725.0,56724.0,0.164632]
[1725561345779,0.46108967,56725.0,56724.0,0.164632]
[1725561345990,0.364578,56725.0,56724.0,0.164632]
[1725561346200,0.364578,56725.0,56724.0,0.299532]
[1725561346639,0.540867,56725.0,56724.0,0.299532]
[1725561347065,0.893445,56725.0,56724.0,0.299532]
[1725561347521,0.540867,56725.0,56724.0,0.299532]
[1725561348868,0.188289,56725.0,56724.0,0.299532]
[1725561349346,0.540867,56725.0,56724.0,0.299532]
[1725561350059,0.540867,56725.0,56724.0,0.475824]
[1725561350060,0.012,56725.0,56724.0,0.475824]
[1725561350293,0.02443767,56725.0,56724.0,1.179992]
[1725561350730,0.02943767,56725.0,56724.0,1.179992]
[1725561351174,0.02443767,56725.0,56724.0,0.827408]
[1725561351401,0.02443767,56725.0,56724.0,1.179992]
[1725561351635,0.02443767,56725.0,56724.0,1.181992]
[1725561355175,0.02443767,56725.0,56724.0,0.476824]
[1725561355380,0.21991933,56727.0,56724.0,0.300532]
[1725561355608,0.21991933,56727.0,56724.0,0.476823]
[1725561356466,0.21991933,56727.0,56724.0,0.474823]
[1725561357110,0.176286,56726.0,56724.0,0.298532]
[1725561357325,0.246957,56726.0,56724.0,0.298532]
[1725561357572,0.176289,56725.0,56724.0,0.298532]
[1725561357993,0.528867,56725.0,56724.0,0.298532]
[1725561359730,0.528867,56725.0,56724.0,0.299532]
[1725561360412,0.1,56730.0,56724.0,0.299532]
[1725561360413,0.01843767,56733.0,56725.0,0.2907]
[1725561360632,0.01843767,56733.0,56732.0,1.172035]
[1725561360841,0.27280067,56749.0,56726.0,0.1790361]
[1725561360842,0.070652,56741.0,56738.0,0.2996]
[1725561361053,0.070652,56741.0,56739.0,0.346945]
[1725561361054,0.01843767,56740.0,56739.0,0.346945]
[1725561361521,0.01843767,56740.0,56739.0,0.1707]
[1725561361730,0.01843767,56740.0,56739.0,0.346945]
[1725561361943,0.01843767,56740.0,56739.0,0.1707]
[1725561362153,0.01843767,56740.0,56739.0,0.346945]
[1725561362861,0.01843767,56740.0,56739.0,0.830636]
[1725561363069,0.01843767,56740.0,56739.0,1.535618]
[1725561363275,0.01843767,56740.0,56739.0,1.183127]
[1725561364474,0.01843767,56740.0,56739.0,1.535618]
[1725561364696,0.001816,56740.0,56739.0,1.540618]
[1725561364911,0.001816,56740.0,56739.0,1.188127]
[1725561365912,0.001816,56740.0,56739.0,0.483145]
[1725561366135,0.001816,56740.0,56739.0,1.188127]
[1725561367661,0.001816,56740.0,56739.0,1.540618]
[1725561367898,0.01843767,56745.0,56744.0,1.18415]
[1725561368108,0.36671453,56763.0,56758.0,0.479186]
[1725561368299,0.52650515,56762.0,56759.0,0.176182]
[1725561368544,0.176175,56762.0,56759.0,0.176182]
[1725561368762,0.08906567,56762.0,56759.0,0.176183]
[1725561368979,0.26524067,56762.0,56760.0,0.1753]
[1725561369458,0.176177,56761.0,56760.0,0.1753]
[1725561369665,0.528531,56761.0,56760.0,0.1753]
[1725561370575,0.628531,56761.0,56760.0,0.1753]
[1725561371487,0.282177,56761.0,56760.0,0.1763]
[1725561371736,0.634531,56761.0,56760.0,0.1763]
[1725561372179,0.282177,56761.0,56760.0,0.1763]
[1725561372401,0.634531,56761.0,56760.0,0.1763]
[1725561373297,0.628531,56761.0,56760.0,0.1753]
[1725561373512,0.632531,56761.0,56760.0,0.1753]
[1725561373760,0.280177,56761.0,56760.0,0.1753]
[1725561373963,0.104,56761.0,56760.0,0.1753]
[1725561374177,0.004,56761.0,56760.0,0.1753]
[1725561374644,0.08906567,56762.0,56761.0,0.528531]
[1725561374850,0.01843767,56762.0,56761.0,1.45108567]
[1725561375073,0.01843767,56762.0,56761.0,1.62659663]
[1725561375298,0.000816,56771.0,56770.0,0.825847]
[1725561375541,0.000816,56771.0,56770.0,0.2974]
[1725561376239,0.529254,56771.0,56770.0,0.2974]
[1725561376685,0.881546,56771.0,56770.0,0.1652]
[1725561376948,1.50663867,56771.0,56770.0,0.1652]
[1725561377163,1.50663867,56771.0,56765.0,0.1785]
[1725561377164,0.176161,56766.0,56765.0,0.1785]
[1725561377396,0.528484,56766.0,56765.0,0.1785]
[1725561377829,0.352314,56768.0,56765.0,0.1785]
[1725561378040,0.528484,56766.0,56765.0,0.1785]
[1725561379308,0.880807,56766.0,56765.0,0.1785]
[1725561379493,0.532484,56766.0,56765.0,0.1785]
[1725561379946,0.528484,56766.0,56765.0,0.1785]
[1725561380351,0.531484,56766.0,56765.0,0.1785]
[1725561380636,0.176164,56765.0,56762.0,0.176173]
[1725561381529,0.176168,56764.0,56761.0,0.176176]
[1725561381720,0.176172,56763.0,56759.0,0.33778]
[1725561381994,0.176172,56763.0,56760.0,0.176179]
[1725561382427,0.357323,56766.0,56760.0,0.352356]
[1725561382648,0.176169,56764.0,56761.0,0.176176]
[1725561383078,0.357323,56766.0,56761.0,0.176176]
[1725561383289,0.35232,56767.0,56762.0,0.176172]
[1725561383507,0.176166,56765.0,56763.0,0.2942]
[1725561383720,0.180166,56765.0,56763.0,0.2942]
[1725561384136,0.176166,56765.0,56763.0,0.2942]
[1725561386157,0.422945,56766.0,56763.0,0.2942]
[1725561386158,0.880837,56764.0,56763.0,0.2942]
[1725561387548,0.883837,56764.0,56763.0,0.2942]
[1725561387769,0.176185,56759.0,56757.0,0.1282]
[1725561388295,0.62515267,56762.0,56758.0,0.345684]
[1725561388296,0.176177,56761.0,56758.0,0.345684]
[1725561388612,0.176171,56763.0,56760.0,0.17618]
[1725561388839,0.176178,56761.0,56758.0,0.1695]
[1725561389059,0.17618,56760.0,56758.0,0.1695]
[1725561389742,0.001,56759.0,56758.0,0.1695]
[1725561390213,0.17618,56760.0,56758.0,0.1695]
[1725561390668,0.002,56760.0,56758.0,0.1695]
[1725561390888,0.178181,56760.0,56758.0,0.1695]
[1725561392426,0.002,56760.0,56759.0,0.52855]
[1725561392650,0.002,56760.0,56759.0,1.181417]
[1725561392867,0.002,56760.0,56759.0,0.82905]
[1725561393354,0.176164,56765.0,56762.0,0.176172]
[1725561394707,0.176168,56764.0,56761.0,0.176174]
[1725561394922,0.176165,56765.0,56762.0,0.176172]
[1725561395759,0.179165,56765.0,56762.0,0.176172]
[1725561396197,0.17617,56764.0,56760.0,0.176178]
[1725561396419,0.002,56765.0,56762.0,0.176173]
[1725561397075,0.178166,56765.0,56762.0,0.176173]
[1725561397317,0.002,56765.0,56764.0,0.176167]
[1725561397554,0.002,56765.0,56764.0,1.057737]
[1725561397787,0.002,56765.0,56764.0,1.544972]
[1725561398690,0.176963,56771.0,56768.0,0.176154]
[1725561398906,0.176963,56771.0,56767.0,0.353056]
[1725561398907,0.176149,56770.0,56767.0,0.353056]
[1725561399332,0.176149,56770.0,56767.0,0.1769]
[1725561399549,0.000816,56771.0,56768.0,0.176152]
[1725561399756,0.176963,56771.0,56768.0,0.176152]
[1725561399979,0.000816,56771.0,56767.0,0.1769]
[1725561400205,0.176151,56770.0,56767.0,0.353058]
[1725561400420,0.176151,56770.0,56767.0,0.1769]
[1725561400631,0.176151,56770.0,56768.0,0.001]
[1725561401345,0.176151,56770.0,56768.0,0.002]
[1725561401810,0.176151,56770.0,56767.0,0.1769]
[1725561402257,0.008816,56771.0,56767.0,0.354058]
[1725561402465,0.000816,56771.0,56768.0,0.1349]
[1725561402681,0.176963,56771.0,56768.0,0.1349]
[1725561402903,0.007,56770.0,56768.0,0.1359]
[1725561403542,0.184963,56771.0,56768.0,0.1349]
[1725561403761,0.000816,56771.0,56768.0,0.1349]
[1725561403986,0.008816,56771.0,56770.0,0.691547]
[1725561404217,0.008816,56771.0,56770.0,1.175545]
[1725561404644,0.008816,56771.0,56770.0,1.527843]
[1725561404876,0.000816,56771.0,56770.0,1.527843]
[1725561405483,0.008816,56771.0,56770.0,1.527843]
[1725561405670,0.008816,56771.0,56770.0,1.70335396]
[1725561405867,0.000816,56771.0,56770.0,1.70335396]
[1725561406075,0.001816,56771.0,56770.0,1.71035396]
[1725561406250,0.009816,56771.0,56770.0,1.71135396]
[1725561406851,0.22044216,56782.0,56777.0,0.176124]
[1725561407056,0.22044216,56782.0,56778.0,0.1756]
[1725561407304,0.176115,56781.0,56779.0,0.1348]
[1725561407508,0.176115,56781.0,56778.0,0.1756]
[1725561407509,0.176121,56779.0,56778.0,0.1756]
[1725561407733,0.528363,56779.0,56778.0,0.1756]
[1725561408773,0.04432916,56782.0,56757.0,0.012]
[1725561408774,0.880623,56778.0,56777.0,0.001]
[1725561408982,1.15342367,56778.0,56777.0,0.001]
[1725561409187,0.80117367,56778.0,56777.0,0.001]
[1725561409622,1.15342367,56778.0,56777.0,0.001]
[1725561410038,0.176133,56775.0,56774.0,0.173]
[1725561411110,0.176133,56775.0,56774.0,0.175]
[1725561411315,0.5284,56775.0,56774.0,0.175]
[1725561411926,0.5284,56775.0,56774.0,0.177]
[1725561412134,0.176133,56775.0,56774.0,0.177]
[1725561412547,0.5284,56775.0,56774.0,0.177]
[1725561412750,0.880667,56775.0,56774.0,0.002]
[1725561412974,1.232934,56775.0,56774.0,0.002]
[1725561413194,1.232934,56775.0,56764.0,0.1319]
[1725561413195,0.176164,56765.0,56764.0,0.1319]
[1725561413464,0.176177,56762.0,56759.0,0.52650515]
[1725561413687,0.176177,56762.0,56761.0,0.3061]
[1725561414522,0.176171,56763.0,56761.0,0.3061]
[1725561414964,0.176172,56763.0,56761.0,0.3061]
[1725561415614,0.176174,56762.0,56761.0,0.3061]
[1725561415847,0.176174,56762.0,56761.0,0.3161]
[1725561416278,0.177174,56762.0,56761.0,0.3261]
[1725561416506,0.177174,56762.0,56761.0,0.3161]
[1725561416954,0.001,56762.0,56761.0,0.3161]
[1725561418292,0.001,56762.0,56761.0,0.844631]
[1725561418500,0.002,56762.0,56761.0,0.856631]
[1725561418777,0.002,56762.0,56761.0,1.208985]
[1725561419624,0.002,56762.0,56761.0,1.561339]
[1725561422315,0.002,56762.0,56761.0,1.913693]
[1725561422555,0.002,56762.0,56761.0,2.08920396]
[1725561423852,0.002,56762.0,56761.0,1.208985]
[1725561424052,0.002,56762.0,56761.0,0.3281]
[1725561424260,0.002,56762.0,56761.0,0.504277]
[1725561424487,0.002,56762.0,56761.0,0.3281]
[1725561424933,0.178174,56762.0,56761.0,0.1962]
[1725561425141,0.530522,56762.0,56761.0,0.1962]
[1725561425594,0.178174,56762.0,56761.0,0.1962]
[1725561425837,0.530522,56762.0,56761.0,0.022]
[1725561426036,0.88287,56762.0,56761.0,0.022]
[1725561427130,0.530522,56762.0,56761.0,0.022]
[1725561427814,0.178174,56762.0,56761.0,0.02363]
[1725561428032,0.002,56762.0,56761.0,0.18753]
[1725561428261,0.002,56762.0,56761.0,0.32903]
[1725561430030,0.178174,56762.0,56761.0,0.32903]
[1725561430480,0.178174,56762.0,56761.0,0.18753]
[1725561431617,0.178174,56762.0,56761.0,0.02363]
[1725561431618,0.88287,56762.0,56761.0,0.02363]
[1725561432090,1.235218,56762.0,56761.0,0.02363]
[1725561432562,1.257218,56762.0,56761.0,0.01363]
[1725561433010,1.718566,56762.0,56761.0,0.00463]
[1725561433243,1.725166,56762.0,56761.0,0.00463]
[1725561433460,1.723166,56762.0,56761.0,0.00163]
[1725561433671,1.729166,56762.0,56761.0,0.00263]
[1725561433892,1.736166,56762.0,56761.0,0.00363]
[1725561434126,1.729166,56762.0,56761.0,0.00263]
[1725561434561,1.723166,56762.0,56761.0,0.00163]
[1725561434562,1.733166,56762.0,56761.0,0.00263]
[1725561435671,2.23593798,56762.0,56761.0,0.00363]
[1725561435902,2.42953172,56762.0,56761.0,0.00363]
[1725561436169,3.06304923,56762.0,56761.0,0.00363]
[1725561436397,4.66025572,56762.0,56761.0,0.00363]
[1725561436619,3.81181805,56762.0,56761.0,0.00363]
[1725561436834,2.68881205,56762.0,56761.0,0.00363]
[1725561437044,2.4317635,56762.0,56761.0,0.00363]
[1725561437256,2.29985505,56762.0,56761.0,0.00363]
[1725561437510,2.08674205,56762.0,56761.0,0.00363]
[1725561437722,2.10952872,56762.0,56761.0,0.00363]
[1725561438145,1.90193419,56762.0,56761.0,0.00363]
[1725561438361,2.09783672,56762.0,56761.0,0.00363]
[1725561438570,2.10635028,56762.0,56761.0,0.00363]
[1725561438785,1.90193428,56762.0,56761.0,0.00363]
[1725561438999,1.82282072,56762.0,56761.0,0.00363]
[1725561439209,1.82082072,56762.0,56761.0,0.00363]
[1725561439473,1.78260367,56762.0,56761.0,0.00363]
[1725561440094,1.78460367,56762.0,56761.0,0.00363]
[1725561440976,1.78260367,56762.0,56761.0,0.00363]
[1725561442061,1.60842967,56762.0,56761.0,0.00363]
[1725561442777,1.43225567,56762.0,56761.0,0.00363]
[1725561443200,1.78260367,56762.0,56761.0,0.00363]
[1725561443623,1.78460367,56762.0,56761.0,0.00363]
[1725561443835,2.00891467,56762.0,56761.0,0.00363]
[1725561444045,1.90773867,56762.0,56761.0,0.00363]
[1725561445292,1.78460367,56762.0,56761.0,0.00363]
[1725561445499,1.78260367,56762.0,56761.0,0.00363]
[1725561445899,1.90233867,56762.0,56761.0,0.00363]
[1725561446471,1.97498867,56762.0,56761.0,0.00363]
[1725561448405,1.85525367,56762.0,56761.0,0.00363]
[1725561448620,1.85325367,56762.0,56761.0,0.00363]
[1725561449495,1.47630567,56762.0,56761.0,0.00363]
[1725561449787,1.49630567,56762.0,56761.0,0.00363]
[1725561451531,1.47630567,56762.0,56761.0,0.00363]
[1725561451748,1.49630567,56762.0,56761.0,0.00363]
[1725561451967,1.47630567,56762.0,56761.0,0.00363]
[1725561453129,1.46630567,56762.0,56761.0,0.00363]
[1725561453349,0.11008767,56762.0,56761.0,0.13183]
[1725561453580,0.197174,56762.0,56761.0,0.29323]
[1725561454017,0.90187,56762.0,56761.0,0.29323]
[1725561454507,0.549522,56762.0,56761.0,0.29323]
[1725561454966,0.649522,56762.0,56761.0,0.29323]
[1725561455192,0.639522,56762.0,56761.0,0.29223]
[1725561455414,0.628522,56762.0,56761.0,0.29123]
[1725561455626,0.632522,56762.0,56761.0,0.29123]
[1725561455845,0.635522,56762.0,56761.0,0.29123]
[1725561457588,0.107,56762.0,56761.0,0.29123]
[1725561457811,0.535522,56762.0,56761.0,0.29123]
[1725561458044,0.635522,56762.0,56761.0,0.29123]
[1725561458467,0.98787,56762.0,56761.0,0.29123]
[1725561462131,0.988685,56762.0,56761.0,0.29123]
[1725561464131,0.988685,56762.0,56761.0,0.16303]
[1725561464349,1.364033,56762.0,56761.0,0.16303]
[1725561464570,1.364033,56762.0,56751.0,0.1692]
[1725561464571,0.01,56757.0,56751.0,0.1692]
[1725561464776,0.80141567,56752.0,56751.0,0.1692]
[1725561465150,1.15382567,56752.0,56751.0,0.1692]
[1725561466023,1.15382567,56752.0,56751.0,0.1702]
[1725561466510,0.01,56751.0,56747.0,0.1672]
[1725561466729,0.528717,56741.0,56740.0,0.131432]
[1725561466967,1.15399567,56741.0,56740.0,0.131432]
[1725561467193,0.881195,56741.0,56740.0,0.298632]
[1725561469113,0.89953311,56741.0,56740.0,0.298632]
[1725561469315,0.89853311,56741.0,56740.0,0.298632]
[1725561469538,0.89553311,56741.0,56740.0,0.298632]
[1725561469758,0.89853311,56741.0,56740.0,0.298632]
[1725561469972,0.89953311,56741.0,56740.0,0.298632]
[1725561470465,0.90353311,56741.0,56740.0,0.298632]
[1725561471722,0.889195,56741.0,56740.0,0.298632]
[1725561472153,0.536717,56741.0,56740.0,0.298632]
[1725561472823,0.008,56741.0,56740.0,0.474874]
[1725561472825,0.008,56741.0,56740.0,0.298632]
[1725561473053,0.008,56741.0,56740.0,0.474874]
[1725561473521,0.008,56741.0,56740.0,0.298632]
[1725561473755,0.004,56741.0,56740.0,0.474874]
[1725561473983,0.004,56741.0,56740.0,0.475874]
[1725561474449,0.176233,56743.0,56741.0,0.1735]
[1725561475557,0.176233,56743.0,56742.0,0.2864]
[1725561475558,0.177233,56743.0,56742.0,0.2864]
[1725561476224,0.178233,56743.0,56742.0,0.2864]
[1725561476911,0.177233,56743.0,56742.0,0.2864]
[1725561477820,0.178233,56743.0,56742.0,0.2864]
[1725561478740,0.530699,56743.0,56742.0,0.2864]
[1725561478970,0.883165,56743.0,56742.0,0.2864]
[1725561480063,0.530699,56743.0,56742.0,0.2864]
[1725561480766,0.002,56743.0,56742.0,0.462636]
[1725561481020,0.002,56743.0,56742.0,1.16758]
[1725561481236,0.002,56743.0,56742.0,1.520052]
[1725561481904,0.001,56743.0,56742.0,1.520052]
[1725561482581,0.177022,56752.0,56750.0,0.3055]
[1725561482799,0.000816,56752.0,56750.0,0.481711]
[1725561483482,0.52867,56746.0,56745.0,0.1303]
[1725561483718,1.15391767,56746.0,56745.0,0.1303]
[1725561483926,1.50636467,56746.0,56745.0,0.1303]
[1725561484143,1.50636467,56746.0,56745.0,0.2927]
[1725561485986,1.50636467,56746.0,56745.0,0.2977]
[1725561486847,1.50636467,56746.0,56745.0,0.1674]
[1725561487771,1.52936467,56746.0,56745.0,0.1674]
[1725561488252,1.52936467,56746.0,56745.0,0.005]
[1725561488253,1.88181167,56746.0,56745.0,0.005]
[1725561488490,1.99181167,56746.0,56745.0,0.005]
[1725561489184,1.235673,56741.0,56740.0,0.001632]
[1725561489410,1.63147367,56741.0,56740.0,0.001632]
[1725561490153,1.99195167,56741.0,56740.0,0.001632]
[1725561490908,1.99895167,56741.0,56740.0,0.002632]
[1725561491139,1.99195167,56741.0,56740.0,0.001632]
[1725561491351,1.99995167,56741.0,56740.0,0.002632]
[1725561491775,1.99195167,56741.0,56740.0,0.001632]
[1725561492221,2.00295167,56741.0,56740.0,0.002632]
[1725561492452,2.01095167,56741.0,56740.0,0.003632]
[1725561492698,2.00495167,56741.0,56740.0,0.002632]
[1725561492933,2.01595167,56741.0,56740.0,0.003632]
[1725561494512,2.03045047,56741.0,56740.0,0.003632]
[1725561496149,1.23389,56731.0,56730.0,0.1586]
[1725561496364,1.23389,56731.0,56725.0,0.1663]
[1725561496365,0.881397,56728.0,56725.0,0.1663]
[1725561496583,1.356956,56728.0,56725.0,0.1663]
[1725561496800,1.368956,56728.0,56725.0,0.1663]
[1725561497234,1.721515,56728.0,56725.0,0.1663]
[1725561497456,1.719515,56728.0,56725.0,0.1663]
[1725561497675,1.724515,56728.0,56727.0,0.002632]
[1725561497890,1.598601,56725.0,56724.0,0.001632]
[1725561498133,2.64968967,56725.0,56724.0,0.001632]
[1725561498371,2.62880467,56725.0,56724.0,0.001632]
[1725561498592,2.16204667,56725.0,56724.0,0.001632]
[1725561499057,2.16004667,56725.0,56724.0,0.001632]
[1725561499514,1.99240167,56725.0,56724.0,0.001632]
[1725561499741,2.00540167,56725.0,56724.0,0.001632]
[1725561500196,2.01840167,56725.0,56724.0,0.001632]
[1725561500873,1.65582367,56725.0,56724.0,0.166532]
[1725561501095,1.65582367,56725.0,56724.0,0.299332]
[1725561501521,1.007445,56725.0,56724.0,0.299332]
[1725561502413,0.654867,56725.0,56724.0,0.299332]
[1725561502633,1.007445,56725.0,56724.0,0.299332]
[1725561503312,0.994445,56725.0,56724.0,0.299332]
[1725561503826,0.981445,56725.0,56724.0,0.299332]
[1725561504276,0.986445,56725.0,56724.0,0.299332]
[1725561505175,0.533867,56725.0,56724.0,0.299332]
[1725561505621,0.005,56725.0,56724.0,0.299332]
[1725561505839,0.005,56725.0,56724.0,0.475624]
[1725561506051,0.005,56725.0,56724.0,0.299332]
[1725561506521,0.531867,56725.0,56724.0,0.299332]
[1725561506751,0.003,56725.0,56724.0,0.299332]
[1725561506962,0.002,56725.0,56724.0,0.299332]
[1725561507185,0.178289,56725.0,56724.0,0.299332]
[1725561507414,0.180289,56725.0,56724.0,0.299332]
[1725561508107,0.004,56725.0,56724.0,0.475624]
[1725561508331,0.180289,56725.0,56724.0,0.299332]
[1725561509702,0.532867,56725.0,56724.0,0.299332]
[1725561510161,0.885445,56725.0,56724.0,0.299332]
[1725561510375,1.15824567,56725.0,56724.0,0.299332]
[1725561511508,0.885445,56725.0,56724.0,0.299332]
[1725561512200,1.51082367,56725.0,56724.0,0.299332]
[1725561513106,1.51082367,56725.0,56724.0,0.166532]
[1725561513107,1.98640167,56725.0,56724.0,0.166532]
[1725561513350,1.98640167,56725.0,56724.0,0.001632]
[1725561516917,1.98640167,56725.0,56724.0,0.306132]
[1725561516918,1.008445,56725.0,56724.0,0.306132]
[1725561517855,1.63382367,56725.0,56724.0,0.306132]
[1725561518067,1.63382367,56725.0,56724.0,0.168332]
[1725561522326,1.63382367,56725.0,56724.0,0.300632]
[1725561522327,0.632867,56725.0,56724.0,0.300632]
[1725561522542,1.25824567,56725.0,56724.0,0.300632]
[1725561525971,0.985445,56725.0,56724.0,0.300632]
[1725561527945,0.632867,56725.0,56724.0,0.300632]
[1725561528174,0.180289,56725.0,56724.0,0.300632]
[1725561528394,0.532867,56725.0,56724.0,0.300632]
[1725561528613,0.885445,56725.0,56724.0,0.300632]
[1725561529085,0.532867,56725.0,56724.0,0.300632]
[1725561529742,0.885445,56725.0,56724.0,0.300632]
[1725561532437,0.532867,56725.0,56724.0,0.300632]
[1725561532680,0.004,56725.0,56724.0,0.300632]
[1725561533776,0.004,56725.0,56724.0,0.476924]
[1725561533990,0.004,56725.0,56724.0,1.182092]
[1725561534434,0.004,56725.0,56724.0,1.534676]
[1725561534891,0.352511,56736.0,56725.0,0.352573]
[1725561535109,0.176261,56734.0,56732.0,0.2805]
[1725561535328,0.176264,56733.0,56730.0,0.176273]
[1725561535771,0.352516,56735.0,56732.0,0.1661]
[1725561535772,0.176261,56734.0,56732.0,0.1661]
[1725561535975,0.38512486,56738.0,56734.0,0.1661]
[1725561536183,0.005,56736.0,56734.0,0.1661]
[1725561536635,0.005,56736.0,56728.0,0.352557]
[1725561536636,0.01843348,56738.0,56737.0,0.176251]
[1725561536872,0.352455,56745.0,56741.0,0.1661]
[1725561537084,0.352455,56745.0,56743.0,0.1661]
[1725561537085,0.19466048,56745.0,56743.0,0.1661]
[1725561537297,0.01843348,56745.0,56743.0,0.1661]
[1725561537713,0.19466048,56745.0,56743.0,0.1661]
[1725561537923,0.01843348,56745.0,56744.0,0.30003]
[1725561538146,0.176218,56748.0,56745.0,0.1644]
[1725561538351,0.176223,56746.0,56745.0,0.1644]
[1725561538561,0.52867,56746.0,56745.0,0.1644]
[1725561539710,0.62867,56746.0,56745.0,0.1664]
[1725561540167,0.981117,56746.0,56745.0,0.1664]
[1725561540394,0.62867,56746.0,56745.0,0.1664]
[1725561540598,0.62967,56746.0,56745.0,0.1664]
[1725561541030,0.62967,56746.0,56745.0,0.1644]
[1725561541476,0.63167,56746.0,56745.0,0.1644]
[1725561541712,0.279223,56746.0,56745.0,0.1644]
[1725561542005,0.103,56746.0,56745.0,0.1644]
[1725561542203,0.003,56746.0,56745.0,0.29]
[1725561542414,0.179223,56746.0,56745.0,0.29]
[1725561542629,0.279223,56746.0,56745.0,0.29]
[1725561542846,0.982117,56746.0,56745.0,0.29]
[1725561543083,1.334564,56746.0,56745.0,0.29]
[1725561543327,1.334564,56746.0,56721.0,0.28280067]
[1725561543328,0.881212,56740.0,56739.0,0.1256]
[1725561543544,0.881212,56740.0,56736.0,0.1256]
[1725561543545,0.176251,56737.0,56736.0,0.1256]
[1725561543757,0.528754,56737.0,56736.0,0.1256]
[1725561543973,0.528754,56737.0,56736.0,0.2824]
[1725561544633,0.176251,56737.0,56736.0,0.2824]
[1725561544856,0.177251,56737.0,56736.0,0.2864]
[1725561545071,0.001,56737.0,56736.0,0.2864]
[1725561545280,0.177251,56737.0,56736.0,0.2864]
[1725561545496,0.001,56737.0,56736.0,0.2864]
[1725561545982,0.001,56737.0,56736.0,0.2904]
[1725561545983,0.002,56737.0,56736.0,0.2904]
[1725561546206,0.002,56737.0,56736.0,0.466654]
[1725561546424,0.001,56737.0,56736.0,0.815163]